bitfinex/quotes_ETHUSD_20251021
["timestamp","ask_amount","ask_price","bid_price","bid_amount"]
[1761043964356,1.10787902,3899.4,3899.3,0.128]
[1761043964559,1.10787902,3899.4,3898.8,0.002]
[1761043965171,0.2223,3900.0,3898.8,0.002]
[1761043965356,0.6901,3900.0,3898.8,0.002]
[1761043965756,0.4678,3899.9,3898.8,0.002]
[1761043965957,0.4678,3899.9,3899.0,2.56475402]
[1761043966157,0.4678,3899.9,3898.8,0.002]
[1761043966158,0.2223,3900.0,3898.8,0.002]
[1761043966681,0.2223,3900.0,3899.0,2.56471326]
[1761043966866,2.56434947,3899.7,3898.8,0.002]
[1761043967484,2.56424801,3899.8,3898.8,0.002]
[1761043967657,0.2223,3899.9,3898.8,0.002]
[1761043968055,2.56445249,3899.5,3898.8,0.002]
[1761043968666,0.50094441,3899.9,3898.8,0.002]
[1761043968869,0.4144,3899.4,3898.8,0.002]
[1761043969364,2.97890744,3899.4,3898.8,0.002]
[1761043969574,2.56457113,3899.3,3898.8,0.002]
[1761043969788,0.71229711,3899.3,3898.8,0.002]
[1761043970095,0.4144,3899.2,3898.8,0.002]
[1761043970561,0.6367,3900.4,3899.2,0.50688]
[1761043970765,0.6367,3900.4,3899.2,3.466]
[1761043970956,0.2223,3900.4,3899.4,2.56448185]
[1761043971156,0.2223,3900.4,3899.5,2.56442975]
[1761043971403,0.2223,3900.7,3899.3,2.99525276]
[1761043971695,0.2223,3900.7,3899.5,2.56443133]
[1761043971997,2.56391774,3900.3,3899.2,3.466]
[1761043972182,2.56399124,3900.2,3899.2,3.466]
[1761043972362,0.4144,3900.5,3899.2,3.466]
[1761043972561,2.56409694,3900.1,3899.2,3.466]
[1761043972994,2.97825303,3900.4,3899.3,2.56450915]
[1761043973195,2.56391807,3900.3,3899.2,6.46132699]
[1761043973696,0.4144,3900.2,3899.2,3.466]
[1761043973903,0.4144,3900.2,3899.2,6.0306267]
[1761043974078,2.56404784,3900.1,3899.2,3.466]
[1761043974480,2.97844784,3900.1,3899.2,3.466]
[1761043974679,2.97844784,3900.1,3900.0,0.128]
[1761043974891,3.27217951,3900.1,3900.0,0.128]
[1761043976394,2.56431114,3899.7,3899.2,3.466]
[1761043976575,2.8578012,3900.1,3899.3,0.1731]
[1761043976772,2.56411591,3900.0,3899.3,0.1731]
[1761043976971,0.1713,3899.9,3899.3,0.1731]
[1761043977205,0.1713,3899.9,3899.2,3.466]
[1761043977584,2.73547326,3899.9,3899.2,3.466]
[1761043977795,0.1713,3899.9,3899.2,3.466]
[1761043978005,2.56434354,3899.7,3899.2,3.466]
[1761043978204,0.1713,3899.9,3899.2,3.466]
[1761043978511,0.6362,3899.9,3899.2,3.466]
[1761043978877,2.56431312,3899.7,3899.2,3.466]
[1761043979296,0.4913308,3899.9,3899.2,3.466]
[1761043979510,1.22945464,3903.1,3899.2,3.466]
[1761043979511,0.40215213,3901.7,3899.7,0.50688]
[1761043979672,0.2223,3902.5,3901.6,0.1731]
[1761043979875,0.2223,3902.5,3901.7,3.456]
[1761043980208,1.34695987,3902.4,3901.7,3.456]
[1761043980404,1.03848586,3902.4,3901.7,3.456]
[1761043980611,1.03848586,3902.4,3901.8,0.6038]
[1761043981291,0.88155987,3902.4,3902.3,0.1731]
[1761043981691,0.88155987,3902.4,3902.3,0.6055]
[1761043983407,0.88155987,3902.4,3902.3,0.1731]
[1761043983986,0.88155987,3902.4,3901.8,0.6055]
[1761043984591,3.4440886,3902.4,3901.8,0.6055]
[1761043984787,0.88155987,3902.4,3901.8,0.6055]
[1761043985110,0.88155987,3902.4,3901.8,0.1731]
[1761043985483,0.88155987,3902.4,3901.7,3.456]
[1761043985883,3.44408554,3902.4,3901.7,3.456]
[1761043986211,0.88155987,3902.4,3902.3,0.1731]
[1761043986598,0.88155987,3902.4,3901.7,3.456]
[1761043986798,0.88155987,3902.4,3901.8,0.02562919]
[1761043987110,0.88155987,3902.4,3901.7,3.8884]
[1761043987620,0.88155987,3902.4,3902.3,0.1731]
[1761043988283,0.88155987,3902.4,3902.0,0.1731]
[1761043988683,0.88155987,3902.4,3902.0,0.6055]
[1761043988880,0.88155987,3902.4,3901.7,3.456]
[1761043989098,3.44413912,3902.4,3901.7,3.456]
[1761043989579,1.48220683,3902.4,3901.7,3.456]
[1761043989785,3.44410731,3902.4,3901.7,3.456]
[1761043990215,2.56261645,3902.3,3901.7,3.456]
[1761043990516,0.88155987,3902.4,3901.7,3.456]
[1761043990711,0.88155987,3902.4,3901.8,0.02562919]
[1761043991085,0.88155987,3902.4,3902.3,0.1731]
[1761043991286,0.88155987,3902.4,3901.9,0.4324]
[1761043991512,0.88155987,3902.4,3901.7,3.456]
[1761043991690,0.88155987,3902.4,3901.7,3.8884]
[1761043991897,2.56260873,3902.3,3901.7,3.456]
[1761043992092,3.44409399,3902.4,3901.7,3.456]
[1761043992292,3.44408761,3902.4,3901.7,3.456]
[1761043992827,0.88155987,3902.4,3901.8,0.4324]
[1761043995626,0.88155987,3902.4,3902.3,0.1731]
[1761043995816,0.88155987,3902.4,3902.3,3.6131]
[1761043996196,0.88155987,3902.4,3902.3,3.7411]
[1761043997121,0.88155987,3902.4,3902.3,3.568]
[1761043998730,4.52537697,3902.4,3902.3,3.568]
[1761043998901,3.91348549,3902.4,3902.3,3.568]
[1761043999108,3.44408549,3902.4,3902.3,3.568]
[1761044000024,3.91348549,3902.4,3902.3,3.568]
[1761044000202,3.44408549,3902.4,3902.3,3.568]
[1761044000408,4.53607361,3902.4,3902.3,3.568]
[1761044000607,4.53607361,3902.4,3902.3,0.128]
[1761044003032,20.48417061,3902.4,3900.5,0.002]
[1761044003230,2.56370814,3900.6,3900.5,0.002]
[1761044003528,3.427,3901.4,3900.5,0.002]
[1761044003716,2.56331385,3901.2,3900.5,0.002]
[1761044004041,2.56356678,3900.9,3900.5,0.002]
[1761044004358,12.35890083,3903.0,3900.5,0.002]
[1761044004503,0.693,3901.9,3900.5,0.002]
[1761044004709,2.56322965,3901.4,3900.5,0.002]
[1761044004910,2.56326584,3901.3,3900.5,0.002]
[1761044005429,0.51263826,3901.3,3900.5,0.002]
[1761044005725,2.56357296,3900.9,3900.5,0.002]
[1761044006134,2.56346279,3901.0,3900.5,0.002]
[1761044006437,3.03032168,3901.2,3900.5,0.002]
[1761044006438,2.56351731,3900.9,3900.5,0.002]
[1761044006639,17.2337519,3901.8,3900.5,0.002]
[1761044006818,2.56332359,3901.2,3900.5,0.002]
[1761044007014,2.56340102,3901.1,3900.5,0.002]
[1761044007238,17.4597519,3901.9,3900.5,0.002]
[1761044007420,0.467,3901.4,3900.5,0.002]
[1761044007736,2.56346125,3901.0,3900.5,0.002]
[1761044008113,2.56349694,3901.0,3900.5,0.002]
[1761044008506,3.03003415,3901.7,3900.5,0.4496]
[1761044008738,0.467,3901.6,3900.5,0.002]
[1761044009053,2.5632973,3901.3,3900.5,0.002]
[1761044009256,0.467,3901.6,3900.5,0.002]
[1761044009538,0.467,3901.6,3900.5,3.01332576]
[1761044009755,2.56311546,3901.6,3900.5,3.03896349]
[1761044009954,2.56312264,3901.5,3900.6,0.4476]
[1761044010111,1.69914121,3901.6,3900.5,0.002]
[1761044010312,2.56322904,3901.4,3900.5,0.002]
[1761044010538,1.23214121,3901.6,3900.5,0.4496]
[1761044010725,0.226,3901.9,3900.5,0.4496]
[1761044010925,2.56325513,3901.3,3900.5,0.4496]
[1761044011144,2.78887376,3901.9,3900.6,2.56369304]
[1761044011440,2.56304714,3901.7,3900.6,2.56369304]
[1761044011637,2.56311473,3901.6,3900.6,3.01029304]
[1761044011810,2.56312599,3901.5,3900.6,0.4466]
[1761044012843,2.56318775,3901.4,3900.6,0.4466]
[1761044013040,2.56263852,3902.3,3901.4,0.128]
[1761044013240,0.88155987,3902.4,3902.1,0.128]
[1761044013713,2.56265696,3902.2,3902.1,0.128]
[1761044013909,0.64543505,3902.2,3902.1,0.128]
[1761044014116,0.88155987,3902.4,3902.1,0.128]
[1761044014342,0.88155987,3902.4,3902.3,0.128]
[1761044015932,3.89168549,3902.4,3902.3,0.128]
[1761044016137,1.32915987,3902.4,3901.2,3.43]
[1761044016325,2.56267357,3902.2,3901.2,3.43]
[1761044016525,2.56291273,3901.9,3901.2,3.43]
[1761044016849,0.38918334,3902.1,3901.2,3.43]
[1761044017024,2.56279902,3902.0,3901.2,3.43]
[1761044017350,2.56287546,3901.9,3901.2,3.43]
[1761044017649,2.56299182,3901.7,3901.2,3.43]
[1761044017848,0.88155987,3902.4,3901.2,3.43]
[1761044018143,2.56277149,3902.1,3901.2,3.43]
[1761044018336,2.56280494,3902.0,3901.2,3.43]
[1761044018934,2.95196704,3902.1,3901.2,3.43]
[1761044019129,0.38919314,3902.1,3901.2,3.43]
[1761044019345,0.38919314,3902.1,3901.2,3.8766]
[1761044019527,2.95191621,3902.1,3901.2,3.8766]
[1761044019729,0.38919314,3902.1,3901.3,0.02563248]
[1761044020143,0.38919314,3902.1,3901.2,3.8766]
[1761044020144,2.95193671,3902.1,3901.2,3.43]
[1761044020348,0.33995367,3902.0,3901.2,3.43]
[1761044020524,0.4476,3902.3,3901.2,3.43]
[1761044020727,2.56285924,3901.9,3901.2,3.8766]
[1761044020955,0.88155987,3902.4,3902.2,0.1731]
[1761044021254,0.88155987,3902.4,3902.1,3.426]
[1761044021559,0.88155987,3902.4,3902.3,0.1731]
[1761044022153,0.88155987,3902.4,3902.3,0.6197]
[1761044022553,0.88155987,3902.4,3902.3,3.18229129]
[1761044023728,12.35890083,3903.0,3902.9,2.56219734]
[1761044023729,10.83847561,3903.0,3902.9,2.56219734]
[1761044023929,10.83847561,3903.0,3902.9,8.22007734]
[1761044023930,10.54211103,3903.0,3902.9,8.22007734]
[1761044024131,10.54211103,3903.0,3902.4,2.27263864]
[1761044024441,1.7208111,3902.9,3901.8,5.16263864]
[1761044024653,1.2732111,3902.9,3901.9,2.89]
[1761044025058,0.4476,3902.8,3901.9,2.89]
[1761044025756,2.56316793,3901.5,3900.1,0.002]
[1761044025956,2.5630437,3901.7,3901.4,0.128]
[1761044026158,2.56311674,3901.5,3901.4,0.128]
[1761044026457,0.4476,3901.6,3900.6,3.469]
[1761044026458,2.56336989,3901.2,3900.6,3.469]
[1761044026643,2.56343603,3901.1,3900.6,3.469]
[1761044026960,2.5627701,3902.1,3901.1,0.128]
[1761044026961,0.4476,3901.3,3901.1,0.128]
[1761044027132,6.02999199,3901.7,3901.0,0.128]
[1761044027332,2.56299199,3901.7,3901.2,0.128]
[1761044027536,2.56305105,3901.6,3901.5,0.128]
[1761044028054,3.01065105,3901.6,3901.5,0.128]
[1761044028847,3.56801052,3901.6,3901.5,0.128]
[1761044030161,2.56337955,3901.1,3901.0,0.002]
[1761044030378,17.2337519,3901.3,3900.1,0.002]
[1761044030542,2.56364242,3900.7,3900.6,0.128]
[1761044030730,2.56364242,3900.7,3900.1,0.002]
[1761044030731,2.82000666,3900.7,3900.1,0.002]
[1761044030931,2.82000666,3900.7,3900.2,0.128]
[1761044030932,3.22970814,3900.6,3900.2,0.128]
[1761044031331,6.69170814,3900.6,3900.2,0.128]
[1761044032376,6.69070814,3900.6,3900.2,0.128]
[1761044032662,3.22970814,3900.6,3900.2,0.128]
[1761044032868,7.30647962,3900.6,3900.1,0.002]
[1761044034773,3.84747962,3900.6,3900.1,0.002]
[1761044035507,7.30247962,3900.6,3900.1,0.002]
[1761044035685,7.30147962,3900.6,3900.1,0.002]
[1761044036054,3.84747962,3900.6,3900.1,0.002]
[1761044036363,7.30047962,3900.6,3900.1,0.002]
[1761044037698,9.46798362,3900.6,3900.1,0.002]
[1761044037866,2.56477669,3899.0,3898.8,0.002]
[1761044038055,2.56482597,3898.9,3898.8,0.002]
[1761044038246,2.78322597,3898.9,3898.8,0.002]
[1761044039085,3.23082597,3898.9,3898.8,0.002]
[1761044040098,4.15537894,3898.9,3898.8,0.002]
[1761044040255,24.90709384,3898.9,3898.8,0.002]
[1761044040449,4.15537894,3898.9,3898.8,0.002]
[1761044040864,3.23082597,3898.9,3898.8,0.002]
[1761044041066,6.67682597,3898.9,3898.8,0.002]
[1761044042086,3.23082597,3898.9,3898.8,0.002]
[1761044042786,20.46457787,3898.9,3898.8,0.002]
[1761044042974,2.56502334,3898.6,3898.5,0.5509375]
[1761044043175,12.56344413,3898.5,3897.4,0.002]
[1761044043483,2.56574727,3897.5,3897.4,0.002]
[1761044044664,0.2241,3898.5,3897.4,0.002]
[1761044044865,0.2241,3898.5,3897.4,0.4579]
[1761044045088,1.9464,3898.9,3897.5,0.02565747]
[1761044045089,0.2184,3898.9,3897.5,0.02565747]
[1761044045395,0.2184,3898.9,3897.6,2.56562219]
[1761044045558,0.2184,3898.9,3897.7,0.02565615]
[1761044045754,0.2184,3898.9,3897.7,0.48155615]
[1761044045960,2.5650087,3898.7,3897.7,0.4559]
[1761044046286,2.56487884,3898.9,3897.7,3.02149041]
[1761044046594,2.5650964,3898.5,3897.7,0.4559]
[1761044046886,0.2241,3898.9,3897.7,3.02146432]
[1761044047286,2.56496246,3898.7,3897.8,0.4559]
[1761044047790,2.56514517,3898.5,3897.8,3.44]
[1761044048088,2.56515646,3898.4,3897.8,3.44]
[1761044048255,2.56472614,3899.1,3897.9,0.48155483]
[1761044048458,3.437,3899.7,3897.9,0.4559]
[1761044048790,2.56482439,3899.0,3897.9,3.02135711]
[1761044049170,2.56482439,3899.0,3898.0,3.02130966]
[1761044049488,2.56398997,3900.2,3899.0,2.56472931]
[1761044049696,2.56416241,3900.0,3899.1,3.5963]
[1761044049899,2.56428016,3899.8,3899.1,3.5963]
[1761044050114,2.56409398,3900.1,3899.1,3.5963]
[1761044050285,2.56409398,3900.1,3899.2,0.4559]
[1761044050485,0.3022294,3900.1,3899.1,3.5963]
[1761044050673,0.7604294,3900.1,3899.1,3.5963]
[1761044050872,2.56447737,3899.5,3899.1,3.5963]
[1761044051619,17.4578519,3899.9,3899.1,3.436]
[1761044051774,2.56462864,3899.2,3899.1,3.436]
[1761044052984,2.56462864,3899.2,3898.2,0.4559]
[1761044052985,0.4582,3899.2,3898.2,3.432]
[1761044053187,3.8902,3899.7,3898.3,0.4559]
[1761044053381,2.56462235,3899.3,3899.1,0.128]
[1761044053596,4.60243,3899.7,3899.1,0.128]
[1761044053972,2.56462864,3899.2,3899.1,0.128]
[1761044054288,2.56456323,3899.3,3899.1,0.128]
[1761044054500,2.56462864,3899.2,3899.1,0.128]
[1761044054904,2.56478941,3899.0,3898.3,0.38698662]
[1761044055106,2.56478941,3899.0,3898.9,0.128]
[1761044055414,2.5647025,3899.1,3898.9,0.128]
[1761044055577,2.56476019,3899.0,3898.9,0.128]
[1761044055978,2.5646246,3899.3,3898.9,0.128]
[1761044056310,2.5646246,3899.3,3898.3,2.5651693]
[1761044056311,0.2241,3899.9,3899.1,0.128]
[1761044056520,0.29255081,3899.8,3899.1,0.128]
[1761044056822,3.557,3900.3,3899.6,0.128]
[1761044057217,2.56429981,3899.7,3899.6,0.128]
[1761044057419,0.4582,3900.2,3899.6,0.128]
[1761044057660,0.4667,3900.2,3899.6,0.128]
[1761044057867,3.427,3900.5,3899.2,0.0914]
[1761044058016,2.5642848,3899.8,3899.2,0.0914]
[1761044058220,2.56435773,3899.7,3899.2,0.0914]
[1761044058637,2.56435773,3899.7,3899.2,0.0689]
[1761044059328,0.42631715,3900.4,3899.2,0.0689]
[1761044059577,2.56411917,3900.0,3899.3,0.3895]
[1761044059834,2.762,3900.8,3899.3,0.3895]
[1761044060034,2.56445511,3901.0,3899.6,0.50688]
[1761044060035,0.001,3901.0,3899.6,0.50688]
[1761044060338,0.001,3901.0,3900.5,0.1828]
[1761044060978,0.001,3901.0,3900.5,0.5723]
[1761044061381,0.001,3901.0,3900.6,0.3895]
[1761044061884,0.001,3901.0,3900.5,0.1828]
[1761044062286,0.001,3901.0,3900.6,0.3895]
[1761044062945,0.001,3901.0,3900.5,0.1828]
[1761044063180,0.001,3901.0,3900.7,0.3895]
[1761044065463,0.001,3901.0,3900.5,0.1828]
[1761044065667,0.001,3901.0,3900.6,0.3895]
[1761044066162,0.001,3901.0,3900.5,0.1828]
[1761044067862,0.001,3901.0,3900.9,0.128]
[1761044069052,2.56444527,3901.0,3900.9,0.128]
[1761044069586,3.0772223,3901.0,3900.9,0.128]
[1761044069886,3.5439223,3901.0,3900.9,0.128]
[1761044070261,2.5638396,3900.4,3900.3,3.406]
[1761044070677,3.0305396,3900.4,3900.3,3.534]
[1761044070985,2.56369729,3900.7,3900.3,3.534]
[1761044071189,0.6975,3900.9,3900.3,3.534]
[1761044071376,2.56364242,3900.7,3900.6,0.128]
[1761044071579,3.19749317,3900.7,3900.6,0.128]
[1761044071889,2.56358312,3900.8,3900.6,0.128]
[1761044072219,0.001,3901.0,3900.6,0.3895]
[1761044072354,2.56358967,3900.8,3900.3,3.406]
[1761044072553,2.56450913,3901.0,3900.3,3.406]
[1761044072775,2.56357876,3900.8,3900.3,3.406]
[1761044073051,0.001,3901.0,3900.3,3.406]
[1761044073258,0.001,3901.0,3900.3,3.7955]
[1761044073865,0.001,3901.0,3900.3,6.35938524]
[1761044074194,0.001,3901.0,3900.3,3.7955]
[1761044074696,0.001,3901.0,3900.4,0.3895]
[1761044075066,0.001,3901.0,3900.4,2.95329875]
[1761044075267,0.001,3901.0,3900.3,5.96990022]
[1761044075471,0.001,3901.0,3900.3,6.35940022]
[1761044076206,0.001,3901.0,3900.3,3.7955]
[1761044077212,0.4652,3901.4,3900.3,3.7955]
[1761044077422,0.7680236,3901.4,3900.3,3.7955]
[1761044077725,2.56333154,3901.2,3900.4,2.56381207]
[1761044077885,2.56333154,3901.2,3900.3,5.96989019]
[1761044078086,2.56333154,3901.2,3900.4,0.3898]
[1761044078319,2.56333154,3901.2,3900.4,2.95363954]
[1761044078630,3.02840535,3901.4,3900.4,0.3898]
[1761044078825,2.56335753,3901.2,3900.4,0.3898]
[1761044079229,2.56335753,3901.2,3900.4,2.95362538]
[1761044079385,2.56335753,3901.2,3900.4,0.3898]
[1761044079784,2.56349153,3901.0,3900.3,3.406]
[1761044080033,2.56337955,3901.1,3900.3,3.406]
[1761044080211,0.2357,3900.4,3900.3,3.406]
[1761044080380,3.2637396,3900.4,3900.3,3.406]
[1761044080585,2.7995396,3900.4,3900.3,3.406]
[1761044080785,3.0280396,3900.4,3900.3,3.406]
[1761044080988,3.0280396,3900.4,3899.8,3.397]
[1761044080989,2.56405827,3900.1,3899.8,3.397]
[1761044081485,2.56394588,3900.3,3899.8,3.397]
[1761044081685,2.56398142,3900.2,3899.8,3.397]
[1761044082329,2.56398142,3900.2,3900.1,0.128]
[1761044082487,3.02818142,3900.2,3900.1,0.128]
[1761044084436,3.02818142,3900.2,3899.8,3.397]
[1761044084437,3.58738378,3900.2,3899.8,3.397]
[1761044084633,3.58738378,3900.2,3899.9,0.128]
[1761044084634,3.02820973,3900.2,3899.9,0.128]
[1761044084948,2.56415018,3900.0,3899.9,0.13]
[1761044085419,3.02835018,3900.0,3899.9,0.13]
[1761044085930,2.56415018,3900.0,3899.9,0.13]
[1761044087021,3.02835018,3900.0,3899.9,0.13]
[1761044089312,2.56415018,3900.0,3899.9,0.13]
[1761044090730,3.02835018,3900.0,3899.9,0.13]
[1761044093948,2.56415018,3900.0,3899.9,0.13]
[1761044094125,0.128,3900.6,3899.9,0.13]
[1761044094323,0.2357,3900.7,3899.9,0.13]
[1761044094324,0.2357,3900.7,3899.9,3.527]
[1761044094554,2.56370814,3900.6,3900.5,0.128]
[1761044094906,3.02790814,3900.6,3900.5,0.128]
[1761044096011,3.61063181,3900.6,3900.5,0.128]
[1761044096545,3.61063181,3900.6,3899.9,3.399]
[1761044096546,2.56410256,3900.0,3899.9,0.002]
[1761044096732,2.56410256,3900.0,3899.9,0.13]
[1761044097050,0.2357,3901.1,3899.9,0.002]
[1761044097222,0.4642,3901.3,3900.0,0.2295]
[1761044097426,2.56362768,3900.8,3900.1,1.034]
[1761044097826,2.56352014,3900.9,3900.1,1.034]
[1761044098038,2.56331385,3901.2,3900.3,2.56385512]
[1761044098208,0.001,3901.4,3900.4,0.41543839]
[1761044098412,0.001,3901.4,3900.4,0.3898]
[1761044099044,2.56349175,3901.0,3900.1,3.5980288]
[1761044099226,2.56349175,3901.0,3900.2,2.5639573]
[1761044099424,2.56365932,3900.7,3900.1,1.034]
[1761044099747,2.56365505,3900.7,3900.1,1.034]
[1761044099914,2.5635767,3900.8,3900.1,1.034]
[1761044100114,2.56375019,3900.6,3900.1,1.034]
[1761044100316,0.2357,3900.9,3900.1,1.034]
[1761044100317,2.79925576,3900.9,3900.1,1.034]
[1761044100529,0.2357,3901.2,3900.2,2.58956522]
[1761044100733,0.001,3901.4,3900.2,0.3898]
[1761044101049,0.001,3901.4,3900.4,2.56378204]
[1761044101249,0.001,3901.4,3900.2,0.89668]
[1761044101417,2.56330841,3901.3,3900.3,0.3898]
[1761044101618,2.56330841,3901.3,3900.4,2.5638396]
[1761044101818,2.56330841,3901.3,3900.3,0.3898]
[1761044102554,2.56330841,3901.3,3900.4,2.5638396]
[1761044102738,2.56332363,3901.2,3900.4,2.5638396]
[1761044102916,0.001,3901.4,3900.1,1.034]
[1761044103120,0.001,3901.4,3900.2,2.56395687]
[1761044103121,2.5634951,3901.0,3900.2,2.56395687]
[1761044103320,2.56353773,3900.9,3900.1,1.034]
[1761044103523,2.56344527,3901.0,3900.1,1.034]
[1761044103832,2.56354229,3900.9,3900.1,1.034]
[1761044104153,2.56386356,3900.4,3900.1,1.034]
[1761044104354,3.29445781,3901.0,3900.1,1.034]
[1761044104355,2.56390619,3900.3,3900.1,1.034]
[1761044104560,0.29949453,3901.0,3900.1,1.034]
[1761044104561,2.56397107,3900.2,3900.1,1.034]
[1761044104760,2.99547107,3900.2,3900.1,1.034]
[1761044104960,2.56410256,3900.0,3899.9,0.002]
[1761044105330,2.99560256,3900.0,3899.9,0.002]
[1761044106180,0.2191,3900.9,3899.9,0.002]
[1761044106670,0.6506,3900.9,3899.9,0.002]
[1761044106871,2.56396617,3900.3,3899.9,0.002]
[1761044107175,2.56370814,3900.6,3900.5,0.128]
[1761044107348,2.56397323,3900.2,3899.9,0.002]
[1761044107675,2.78265736,3900.9,3900.5,0.128]
[1761044107882,2.56382004,3900.5,3900.1,0.128]
[1761044108171,2.56376448,3900.6,3900.4,0.128]
[1761044108579,2.56377387,3900.5,3900.4,0.128]
[1761044108748,3.07651115,3900.5,3900.4,0.128]
[1761044108949,2.56408343,3900.1,3899.9,0.002]
[1761044109274,2.56397107,3900.2,3899.9,0.002]
[1761044109468,2.56410256,3900.0,3899.9,0.13]
[1761044109871,0.51273728,3900.5,3899.9,0.13]
[1761044110072,2.5638396,3900.4,3899.9,0.002]
[1761044110280,2.56397617,3900.2,3899.9,0.002]
[1761044111047,2.56404938,3900.1,3899.9,0.002]
[1761044111364,2.56410256,3900.0,3899.9,0.002]
[1761044111752,2.99560256,3900.0,3899.9,0.002]
[1761044112477,2.56410256,3900.0,3899.9,0.002]
[1761044112690,0.29906982,3901.6,3899.9,0.002]
[1761044112691,2.56418678,3901.4,3900.5,2.56371951]
[1761044112865,2.56326264,3901.3,3900.6,3.412]
[1761044113182,2.56331385,3901.2,3900.6,3.412]
[1761044113366,0.4315,3901.1,3900.6,3.412]
[1761044113571,2.56353133,3900.9,3900.6,3.412]
[1761044114388,2.7825607,3901.0,3900.6,3.412]
[1761044114688,2.56351172,3900.9,3900.6,3.412]
[1761044115281,0.2191,3901.0,3900.6,3.412]
[1761044115584,0.4315,3900.9,3900.6,3.412]
[1761044115788,2.56362627,3900.8,3900.6,3.412]
[1761044116383,2.7825529,3901.0,3899.9,0.002]
[1761044116384,0.2191,3901.0,3899.9,3.41]
[1761044116556,2.99519526,3900.7,3899.9,3.41]
[1761044116986,2.56395517,3900.3,3899.9,3.41]
[1761044117184,2.56395178,3900.3,3899.9,3.41]
[1761044117388,2.99550046,3900.2,3899.9,3.41]
[1761044117681,2.56384765,3900.4,3899.9,3.41]
[1761044117886,2.56404484,3900.1,3899.9,3.41]
[1761044118186,2.5639776,3900.2,3899.9,3.41]
[1761044118360,2.56387231,3900.4,3899.9,3.41]
[1761044118567,0.441,3900.3,3899.9,3.41]
[1761044118782,6.18858609,3901.0,3899.9,3.41]
[1761044118783,0.441,3900.9,3899.9,3.41]
[1761044119088,0.66295861,3900.8,3899.9,3.41]
[1761044119290,2.56393064,3900.3,3899.9,3.41]
[1761044119665,2.56410256,3900.0,3899.9,0.002]
[1761044119863,2.56404634,3900.1,3899.9,0.002]
[1761044120181,2.56403681,3900.1,3900.0,0.128]
[1761044121683,3.56193105,3900.1,3900.0,0.128]
[1761044123164,2.56410256,3900.0,3899.9,0.002]
[1761044123383,3.00510256,3900.0,3899.9,0.002]
[1761044126485,3.13310256,3900.0,3899.9,0.002]
[1761044130903,4.86110256,3900.0,3899.9,0.002]
[1761044131104,6.25539648,3900.0,3899.9,0.002]
[1761044133811,9.65239648,3900.0,3899.9,0.002]
[1761044136297,2.69210256,3900.0,3899.9,0.002]
[1761044136495,2.56410256,3900.0,3899.9,0.002]
[1761044137491,2.99350256,3900.0,3899.9,0.002]
[1761044138027,6.39050256,3900.0,3899.9,0.002]
[1761044138624,12.08012396,3900.0,3899.9,0.002]
[1761044138808,13.55733869,3900.0,3899.9,0.002]
[1761044139714,13.12793869,3900.0,3899.9,0.002]
[1761044140713,9.73093869,3900.0,3899.9,0.002]
[1761044141019,10.16033869,3900.0,3899.9,0.002]
[1761044141388,11.88833869,3900.0,3899.9,0.002]
[1761044142019,17.57796009,3900.0,3899.9,0.002]
[1761044142592,20.28096009,3900.0,3899.9,0.002]
[1761044142816,6.19871729,3900.0,3899.9,0.002]
[1761044143106,9.59571729,3900.0,3899.9,0.002]
[1761044146130,6.19871729,3900.0,3899.9,0.002]
[1761044146331,9.59571729,3900.0,3899.9,0.002]
[1761044146928,4.29236557,3899.6,3899.5,0.002]
[1761044147132,24.52288833,3899.6,3899.5,0.002]
[1761044147356,24.95228833,3899.6,3899.5,0.002]
[1761044149836,35.54699433,3899.6,3899.5,0.002]
[1761044150034,34.89498033,3899.6,3899.5,0.002]
[1761044150732,37.51979033,3899.6,3899.5,0.002]
[1761044151038,8.54700213,3899.6,3899.5,0.002]
[1761044152445,11.75688213,3899.6,3899.5,0.002]
[1761044152643,11.75688213,3899.6,3898.0,0.128]
[1761044152644,2.56462864,3899.2,3898.0,0.128]
[1761044152820,24.5359777,3899.2,3898.0,0.128]
[1761044153142,24.9653777,3899.2,3898.0,0.128]
[1761044154864,4.7346915,3899.2,3898.0,0.128]
[1761044155146,4.29262864,3899.2,3898.3,0.3898]
[1761044155456,7.81662864,3899.2,3898.6,0.5178]
[1761044156462,4.42062864,3899.2,3899.1,0.5065]
[1761044156759,2.56462864,3899.2,3899.1,0.5065]
[1761044157248,2.56462864,3899.2,3899.1,0.6345]
[1761044157455,2.56462864,3899.2,3899.1,0.2447]
[1761044157657,2.56462864,3899.2,3899.1,0.13]
[1761044158458,3.84654619,3899.2,3899.1,0.002]
[1761044158677,3.41714619,3899.2,3899.1,0.002]
[1761044158982,2.56462864,3899.2,3899.1,0.5065]
[1761044160276,2.56462864,3899.2,3899.1,0.1167]
[1761044160650,2.56462864,3899.2,3899.1,0.5065]
[1761044161059,2.56462864,3899.2,3899.1,0.002]
[1761044161374,3.07754619,3899.2,3899.1,0.002]
[1761044161566,3.55154619,3899.2,3899.1,0.002]
[1761044161738,3.07754619,3899.2,3899.1,0.002]
[1761044162142,3.55154619,3899.2,3899.1,0.002]
[1761044162739,12.32483619,3899.2,3899.1,0.002]
[1761044162963,10.05179619,3899.2,3899.1,0.002]
[1761044163470,9.17431619,3899.2,3899.1,0.002]
[1761044163840,10.00541019,3899.2,3899.1,0.002]
[1761044164040,5.27954619,3899.2,3899.1,0.002]
[1761044164449,7.35870319,3899.2,3899.1,0.002]
[1761044164778,10.97527515,3899.2,3899.1,0.002]